Cogmind - Beta 15 @@@ ROGUE MODE // 2025.10.05 @ 10:24:05 Player: AussieBBQ Result: Destroyed by MA-6I9(R) with Subdweller Machine Gun Performance ------------- Evolutions (0) 0 Regions Visited (3) 600 Robots Destroyed (24) 120 Value Destroyed (481) 481 Prototype IDs (0) 0 Alien Tech Used (0) 0 Bonus (-36) -36 TOTAL SCORE: 1165 Bonus ------- Friendly Fire -36 Cogmind --------- Core Integrity 0/250 Matter 53/300 Energy 177/200 System Corruption 0% Temperature Cool (0) Movement Treading (160) Location -10/Subcaves Parts ------- > --- POWER (1) -------- Subdweller Power Source > --- PROPULSION (2) --- Light Treads Light Treads > --- UTILITY (2) ------ Large Storage Unit Terrain Scan Processor > --- WEAPON (2) ------- Subdweller Laser Flamer > --- INVENTORY (15) --- Light Treads Light Treads Disposable Heat Sink Small Storage Unit Assault Rifle Light Assault Rifle Subdweller Machine Gun Subdweller Machine Gun Grenade Launcher Grenade Launcher Rocket Launcher Hammer Peak State ------------ > --- POWER ------------ Subdweller Power Source > --- PROPULSION ------- Aluminum Leg Aluminum Leg > --- UTILITY ---------- Large Storage Unit Terrain Scan Processor > --- WEAPON ----------- Subdweller Machine Gun Subdweller Machine Gun > --- INVENTORY -------- Light Ion Engine Light Ion Engine Light Ion Engine Light Treads Light Treads Light Treads Light Treads Small Storage Unit Assault Rifle Light Assault Rifle Grenade Launcher Grenade Launcher Rocket Launcher Hammer [Rating: 12] Favorites ----------- Power Light Ion Engine Engine Light Ion Engine Propulsion Aluminum Leg Treads Light Treads Leg Aluminum Leg Utility Large Storage Unit Storage Large Storage Unit Processor Terrain Scan Processor Weapon Assault Rifle Energy Gun Subdweller Laser Ballistic Gun Assault Rifle Launcher Rocket Launcher Special Weapon Flamer Impact Weapon Hammer Build | -11 -10 -10 -10 ------- Run | Yrd Mat Min Sub Slots Evolved . | . . . . Power . | . . . . Propulsion . | . . . . Utility . | . . . . Weapon . | . . . . Parts Attached 22 | 6 6 1 9 Power 3 | 1 . . 2 Engine 3 | 1 . . 2 Core . | . . . . Reactor . | . . . . Propulsion 4 | 2 . . 2 Treads 2 | . . . 2 Leg 2 | 2 . . . Wheel . | . . . . Hover . | . . . . Flight . | . . . . Utility 4 | 1 3 . . Device . | . . . . Storage 3 | 1 2 . . Processor 1 | . 1 . . Hackware . | . . . . Protection . | . . . . Artifact . | . . . . Weapon 11 | 2 3 1 5 Energy Gun 1 | . . . 1 Energy Cannon . | . . . . Ballistic Gun 5 | 2 1 . 2 Ballistic Cannon . | . . . . Launcher 3 | . 2 1 . Special Weapon 1 | . . . 1 Impact Weapon 1 | . . . 1 Slashing Weapon . | . . . . Piercing Weapon . | . . . . Special Melee Weapon . | . . . . Unidentified Prototypes . | . . . . Parts Lost 3 | . . . 3 Power 1 | . . . 1 Propulsion 2 | . . . 2 Utility . | . . . . Weapon . | . . . . Highest Loss Streak 3 | . . . 3 To Critical Strikes . | . . . . Average Backups 11 | 3 10 12 13 Power 1 | . 1 2 1 Propulsion 3 | 1 3 4 3 Utility 1 | . . 1 1 Weapon 5 | . 3 5 6 Tool/Special . | . . . . Unused Backups 8 | . 2 . 6 Power 2 | . . . 2 Propulsion 4 | . 2 . 2 Utility 1 | . . . 1 Weapon 1 | . . . 1 Tool/Special . | . . . . Average Slot Usage (%) 94 | . 85 100 99 Engine 13 | . 14 14 13 Treads 1 | . . . 3 Leg 26 | . 28 28 23 Storage 14 | . 14 14 14 Processor 8 | . . 14 14 Energy Gun 3 | . . . 9 Ballistic Gun 19 | . 27 27 8 Launcher 3 | . . . 7 Impact Weapon 1 | . . . 2 Peak Build Rating 12 | 6 9 10 12 Average Rating 8 | 4 6 9 11 On Entrance 6 | . 6 9 9 Naked Turns . | . . . . Heaviest Build 33 | 12 28 29 33 Greatest Support 40 | 20 20 20 40 Greatest Overweight (x) 1 | 1 1 1 1 Average Overweight (x) . | . . 1 . Largest Inventory Capacity 20 | 8 20 15 15 Average Capacity 14 | 6 13 15 15 Most Carried 15 | 6 12 13 15 Average Carried 11 | 2 10 12 13 Final Capacity 15 | 8 15 15 15 Final Carried 13 | 6 12 13 12 Class Distribution -------------------- 95% | Mutant 4% | Scavenger-Mutant Dominant Class ---------------- Mutant | -10/Materials Mutant | -10/Mines Mutant | -10/Subcaves Resources | -11 -10 -10 -10 ----------- Run | Yrd Mat Min Sub Matter Collected 556 | 227 82 61 186 Remotely . | . . . . Salvage Created 349 | . 120 12 217 Parts 35 | . 22 5 8 Haulers Intercepted . | . . . . Recyclers Shooed . | . . . . Parts Field Recycled . | . . . . Retrieved Matter . | . . . . Parts Self-Destructed 5 | . . . 5 Prevented . | . . . . Kills | -11 -10 -10 -10 ------- Run | Yrd Mat Min Sub Combat Hostiles Destroyed 20 | . 10 3 7 Guns 3 | . 1 . 2 AOE 15 | . 9 3 3 Classes Destroyed 7 | . 5 . 2 Builder 1 | . 1 . . Operator 1 | . 1 . . Watcher 1 | . 1 . . Swarmer 12 | . 9 3 . Grunt 1 | . 1 . . Subdweller 7 | . . . 7 Zionite 1 | . . . 1 Best Kill Streak 4 | . 4 3 2 Combat Bots Only 3 | . 3 3 2 Max Kills in Single Turn 3 | . 3 1 1 Gunslinging . | . . . . Exploded 3 | . 3 1 1 Melee . | . . . . Uniques/NPCs Destroyed . | . . . . Combat | -11 -10 -10 -10 -------- Run | Yrd Mat Min Sub Hostile Shots Fired 68 | . 15 8 45 Missed 18 | . 4 1 13 Hits 50 | . 11 7 32 Projectile 50 | . 11 7 32 Critical Strikes 1 | . . . 1 Damage Taken 791 | . 95 53 643 Core 257 | . 27 22 208 Absorbed by Shields . | . . . . Core Remaining (%) 100 | 100 . . . Volleys Fired 33 | . 11 3 19 Largest 2 | . 2 1 2 Hottest 160 | . 40 33 160 Shots Fired 44 | . 15 3 26 Gun 21 | . 8 . 13 Cannon . | . . . . Launcher 21 | . 7 3 11 Special 2 | . . . 2 Kinetic 20 | . 8 . 12 Thermal 3 | . . . 3 Explosive 21 | . 7 3 11 Electromagnetic . | . . . . Robot Hit Streak 12 | . 4 . 12 Robot Miss Streak 2 | . 1 2 1 Penetration Max . | . . . . Secondary Targets . | . . . . Shots Hit Robots 37 | . 9 . 28 Core Hits 38 | . 18 3 17 Critical Kills . | . . . . Critical Parts Destroyed 1 | . . . 1 Critical Strikes 3 | . . . 3 Burn 1 | . . . 1 Smash 2 | . . . 2 Melee Attacks 15 | . . . 15 Impact 15 | . . . 15 Slashing . | . . . . Piercing . | . . . . Sneak Attacks . | . . . . Combat Hostiles . | . . . . Follow-up Attacks . | . . . . Damage Inflicted 1512 | . 529 167 816 Guns 231 | . 79 . 152 Cannons . | . . . . Explosions 1052 | . 450 167 435 Melee 206 | . . . 206 Ramming . | . . . . Kinetic 213 | . 79 . 134 Thermal 41 | . . . 41 Explosive 1052 | . 450 167 435 Electromagnetic . | . . . . Impact 206 | . . . 206 Slashing . | . . . . Piercing . | . . . . Highest Corruption . | . . . . Average Corruption . | . . . . Corruption Purged . | . . . . Corruption Blocked . | . . . . Overload Shots . | . . . . Overflow Damage 27 | . . . 27 Projectiles . | . . . . Explosions . | . . . . Melee 27 | . . . 27 Knockbacks 1 | . . . 1 Impact 1 | . . . 1 Kinetic . | . . . . Secondary . | . . . . Self-Inflicted Damage . | . . . . Shots . | . . . . Rammed . | . . . . Targets Rammed . | . . . . Kicked . | . . . . Crushed . | . . . . Highest Temperature . | . . . . Average Temperature . | . . . . Received Heat Transfer 42 | . 18 . 24 Siege Activations . | . . . . Martial Activations . | . . . . Shielding Activations . | . . . . Robots Disrupted . | . . . . Combat Hostiles . | . . . . Robots Corrupted 2 | . . . 2 Combat Hostiles 2 | . . . 2 Parts Fried 2 | . . . 2 Impact Corruptions 2 | . . . 2 Robots Melted . | . . . . Combat Hostiles . | . . . . Parts Melted . | . . . . Heat Transferred 345 | . . . 345 Parts Sabotaged . | . . . . Parts Stolen . | . . . . Parts Stripped . | . . . . Power Chain Reactions . | . . . . Alert | -11 -10 -10 -10 ------- Run | Yrd Mat Min Sub Maximum Alert Level . | . . . . Low Security (%) 100 | 100 100 100 . Level 1 . | . . . . Level 2 . | . . . . Level 3 . | . . . . Level 4 . | . . . . Level 5 . | . . . . High Security . | . . . . Max Security . | . . . . Peak Influence 100 | . 100 84 . Initial 28 | . . 28 . Average 23 | . 27 18 . Influence Increases 393 | . 309 84 . Destroy 0b10 Robot/C 260 | . 200 60 . Destroy 0b10 Robot/NC 15 | . 15 . . Destroy Leader 52 | . 42 10 . Disable Machine 15 | . 15 . . Destroy Structure 51 | . 37 14 . Influence Decreases 393 | . 235 132 26 Entered New Map 60 | . . 46 14 Time Decay 333 | . 235 86 12 Squads Dispatched 3 | . 3 . . Investigation 2 | . 2 . . Extermination . | . . . . Reinforcement 1 | . 1 . . Assault . | . . . . Garrison . | . . . . Intercept . | . . . . Searches Triggered . | . . . . Construction Impeded . | . . . . Haulers Reinforced . | . . . . Active Scanning Responses . | . . . . Cargo Convoy Interrupts . | . . . . Stealth | -11 -10 -10 -10 --------- Run | Yrd Mat Min Sub Distress Signals 2 | . 2 . . Communications Jammed . | . . . . Distress Signals . | . . . . Times Spotted 29 | . 17 3 9 Peak Tracking Total 4 | . 4 3 2 Tactical Retreats . | . . . . Traps | -11 -10 -10 -10 ------- Run | Yrd Mat Min Sub Traps Triggered 2 | . 2 . . Indirectly . | . . . . Trap Hack Attempts . | . . . . Triggered . | . . . . Disarmed . | . . . . Reprogrammed . | . . . . Reused . | . . . . Traps Extracted . | . . . . Installed . | . . . . Triggered . | . . . . Machines | -11 -10 -10 -10 ---------- Run | Yrd Mat Min Sub Machines Disabled 1 | . 1 . . Max in Single Turn 1 | . 1 . . Machines Repaired . | . . . . Machines Dismantled . | . . . . Machines Sabotaged . | . . . . Overloaded Fab Kills . | . . . . Hacking | -11 -10 -10 -10 --------- Run | Yrd Mat Min Sub Machines Accessed 3 | . 2 . 1 Terminals 2 | . 2 . . Fabricators . | . . . . Repair Stations . | . . . . Recycling Units . | . . . . Scanalyzers . | . . . . Garrison Access . | . . . . Total Hacks 6 | . 2 . 4 Successful 4 | . . . 4 Failed 2 | . 2 . . Catastrophic . | . . . . Database Lockouts . | . . . . Manual . | . . . . Terminals 2 | . 2 . . Fabricators . | . . . . Repair Stations . | . . . . Recycling Units . | . . . . Scanalyzers . | . . . . Garrison Access . | . . . . Terminal Hacks 4 | . . . 4 Record 4 | . . . 4 Fabricator Hacks . | . . . . Repair Station Hacks . | . . . . Recycling Unit Hacks . | . . . . Scanalyzer . | . . . . Garrison Access Hacks . | . . . . Unauthorized Hacks . | . . . . Terminals . | . . . . Fabricators . | . . . . Repair Stations . | . . . . Recycling Units . | . . . . Scanalyzers . | . . . . Garrison Access . | . . . . Data Cores Recovered 1 | . 1 . . Used . | . . . . Hacking Detections 1 | . 1 . . Full Trace Events . | . . . . Feedback Events . | . . . . Feedback Blocked . | . . . . Robot Schematics Acquired . | . . . . Robots Built . | . . . . Authchips . | . . . . Time . | . . . . Total Robot Build Rating . | . . . . Part Schematics Acquired . | . . . . Parts Built . | . . . . Authchips . | . . . . Time . | . . . . Total Part Build Rating . | . . . . Parts Repaired . | . . . . Time . | . . . . Parts Recycled . | . . . . Recycled Matter . | . . . . Retrieved Matter . | . . . . Retrieved Components . | . . . . Parts Scanalyzed . | . . . . Part Schematics Acquired . | . . . . Parts Damaged . | . . . . Bothacking | -11 -10 -10 -10 ------------ Run | Yrd Mat Min Sub Used RIF Installer . | . . . . Robots Hacked . | . . . . Non-combat . | . . . . Combat . | . . . . Robot Hacks Applied . | . . . . Relay Couplers Released . | . . . . Fabnet Peak Effective % . | . . . . Robots Rewired . | . . . . Allies Hacked . | . . . . Hacks Repelled . | . . . . Allies | -11 -10 -10 -10 -------- Run | Yrd Mat Min Sub Total Allies . | . . . . Largest Group . | . . . . Highest-Rated Group . | . . . . Highest-Rated Ally . | . . . . Total Orders . | . . . . Ally Attacks . | . . . . Total Damage . | . . . . Kills . | . . . . Allies Corrupted . | . . . . Allies Melted . | . . . . Intel | -11 -10 -10 -10 ------- Run | Yrd Mat Min Sub Active Infowar (turns) . | . . . . Robot Analysis Total . | . . . . Derelict Logs Recovered 3 | . . 2 1 Drone Launches . | . . . . Drone Recoveries . | . . . . Exploration | -11 -10 -10 -10 ------------- Run | Yrd Mat Min Sub Turns Passed 2368 | 66 888 417 997 Spaces Moved 1216 | 46 483 215 472 Core 7 | 7 . . . Treads 76 | . . . 76 Legs 1133 | 39 483 215 396 Wheels . | . . . . Hover . | . . . . Flight . | . . . . Fastest Speed 50 | 50 120 190 160 Average Speed 176 | 112 168 190 185 Slowest Speed 190 | 120 190 190 190 Overloaded Moves . | . . . . Propulsion Burnouts . | . . . . Robots Hopped . | . . . . Potential Cave-ins . | . . . . Cave-ins Triggered . | . . . . Exploration Rate (%) 48 | 3 87 63 41 Regions Visited 3 Branch Regions 2 Pre-discovered Areas 2 | . . . 2 Known Exits Taken 1 | . . 1 . Unknown Exits Taken 2 | 1 1 . . Scrap Searched 1 | . . 1 . Spaces Dug . | . . . . Terrain Destroyed 118 | . 44 17 57 Melee . | . . . . Projectile . | . . . . AOE 118 | . 44 17 57 Terrain Rammed . | . . . . Walls Destroyed . | . . . . Machines Disabled . | . . . . Actions | -11 -10 -10 -10 --------- Run | Yrd Mat Min Sub Total 1361 | 57 543 220 541 Wait 29 | . 29 . . Move 1213 | 45 482 214 472 Hop . | . . . . Pick Up 19 | 6 7 1 5 Fast Attach 12 | 6 3 . 3 Attach 5 | . 1 . 4 Detach 4 | . 2 . 2 Swap 17 | . 5 2 10 Drop 10 | . 3 . 7 Fire 33 | . 11 3 19 Melee 15 | . . . 15 Ram . | . . . . Kick . | . . . . Crush . | . . . . Escape Stasis . | . . . . Rewire 4 | . . . 4 Trap . | . . . . Miscellaneous . | . . . . Route ------- -11/Scrapyard -10/Materials (discovered 4 exits: [*Mat x3] / [*Min]) -10/Mines (discovered 2 exits: [*Mat] / *Sub) -10/Subcaves (discovered 1 exit: [*Mat]) History --------- Turn | Location | Event 7 | -11/Scrapyard | Discovered new exit (range 15) 67 | -11/Scrapyard | Entered Materials 156 | -10/Materials | Discovered new exit (range 13) 267 | -10/Materials | Discovered new exit (range 5) 303 | -10/Materials | Build established: Mutant 342 | -10/Materials | Discovered new exit (range 16) 931 | -10/Materials | Discovered new exit (range 8) 955 | -10/Materials | Entered Mines 980 | -10/Mines | Received a Rocket Launcher from a helpful Derelict 1029 | -10/Mines | Identified exit to Subcaves 1029 | -10/Mines | Discovered new exit (range 7) 1359 | -10/Mines | Learned 2 Materials zone layouts 1372 | -10/Mines | Entered Subcaves 1451 | -10/Subcaves | Learned location of Zion (-7) 1451 | -10/Subcaves | Met a Zionite searching for "candidates" 2018 | -10/Subcaves | Visited Clippyterm 2024 | -10/Subcaves | Learned 40 Factory zone layouts 2024 | -10/Subcaves | Learned Factory stockpile data 2137 | -10/Subcaves | Shifting Twisted Machinery released Flamer 2195 | -10/Subcaves | Core integrity fell below 50% 2249 | -10/Subcaves | Lost 3 parts (1p2n) 2359 | -10/Subcaves | Discovered new exit (range 9) 2360 | -10/Subcaves | Core integrity fell below 20% 2369 | -10/Subcaves | Destroyed by MA-6I9(R) with Subdweller Machine Gun Last Messages --------------- 02162_ Acquired Flamer. 02197_ YP-PM8(R) knocked back. 02199_ K8-FGO(R) suffers critical hit (Smash). 02199_ Destroyed Sub. Monowheel. 02199_ K8-FGO(R) system corrupted by crushing effect. 02200_ K8-FGO(R) system terminally corrupted. 02200_ Sub. Optics fried. 02202_ Acquired 46 matter. 02208_ Sub. Power Source destroyed. 02214_ Aluminum Leg destroyed. 02219_ YP-PM8(R) suffers critical hit (Smash). 02224_ Destroyed Sub. Power Source. 02224_ YP-PM8(R) system corrupted by crushing effect. 02225_ YP-PM8(R) system terminally corrupted. 02225_ Sub. Monowheel fried. 02229_ Acquired 34 matter. 02359_ EXIT=FOUND 02363_ MA-6I9(R) suffers critical hit (Burn). Map ----- +----------------------------------------------------+ | | | | | | | | | | | | | ????????????????????????????????????????????????? | | ????????????????????????????????????????????????? | | ????????????????????????????????????????????????? | | ????????????????????????????????????????????????? | | ????????????????????????????????????????????????? | | ????????????????????????????????????????????????? | | ????????????????????????????????????????????????? | | ????????????????????????????????????????????????? | | ????????????????????????????????????????????????? | | ????????????????????????????????????????????????? | | ????????????????????????????????????????????????? | | ????????????????????????????????????????????????? | | ????????????????????????????????????????????????? | | ????????????????????????????????????????????????? | | ????????????????????????????????????????????????? | | ????????????????????????????????????????????????? | | ???????????????????????#####????????????????????? | | ???????????????? """" ##R#"#????????????????????? | | ???????????????# < " R #????????????????????? | | ????????????????# ### #@ #??###???????????????? | | ????????????????## ??#??## ### ##??????????????? | | ????????????????#" ### ?# # ##?????????????? | | ?????????????????# # ?## # #?????????????? | | ??????????????????? #?# ##?????????????? | | ????????????????????# ?# #??????????????? | | ????????????????????# ## #####??????????????? | | ????????????????????# ##??????????????????? | | ????????????????????## ##???????????????????? | | ?????????????????##??## #????????????????????? | | ?????????????????# ##?## ##???????????????????? | | ?????????????????# ### #???????????????????? | | ??????????????????# #???????????????????? | | ??????????????????## #####???????????????? | | ??????????????????## ##??????????????? | | ??????????????????# #??????????????? | | ??????????????????# #??????????????? | | ??????????????????## ### ## #??????????????? | | ???????????????????# ##?#######??????????????? | | ?????????????###???# #???????????????????????? | | ???????????### ##?## #???????????????????????? | | ???????????# ?# ###???????????????????????? | | ????????????# ## #????????##???????????????? | | ?????????????# #??????## #???????????????? | | ?????????????# ##?????# #???????????????? | +----------------------------------------------------+ Best States ------------- Heat Dissipation 25 Energy Generation 15 Energy Capacity 200 Matter Stores 268 Matter Capacity 300 Sight Range 16 Terrain Scan Density 85 Evasion (%) 55 Recoil Reduction 2 Item Schematics ----------------- None Robot Schematics ------------------ None Fabricated ------------ Nothing Repaired ---------- Nothing Alien Tech Used ----------------- None Achievements -------------- Backstab Challenges ------------ None Game ------ Seed StealthSurgeLeg Manual? 0 Play Time 00:19:51 Cumulative 8.1 hours Start 2025.10.05 @ 10:06:41 End 2025.10.05 @ 10:24:05 Sessions 1 Manual Loads 0 Difficulty Rogue Special Mode None Game No. 24 Rogue 24 Adventurer 0 Explorer 0 Win Type - Total 0 Types 0/0/0/0/0/0/0/0/0/0 Lore% 16 Gallery% 16 Achievement% 15 Wizard Run 0 Options --------- Layout 1 ASCII 0 Keyboard 0 Movement Numpad Keybinds 0 Fullscreen 2 Font 24/Smallcaps Map View 50x35 Zoom Use 0% Tactical HUD 1 Map Filters NONE Filters NONE Steam 1 RUN: 0ce97a7b-5e78-494a-9230-a8d842d3fe7a